[Event "Najdorf Memorial-A 2022"]
[Site "Warsaw"]
[Date "2022.07.09"]
[Round "1.5"]
[White "Gasiorek, Dariusz"]
[Black "Dalkowski, Rafal"]
[Result "1-0"]
[ECO "A59"]
[WhiteElo "1854"]
[BlackElo "2120"]
[Annotator "RC"]
[PlyCount "97"]
[EventDate "2022.07.09"]
[EventType "swiss"]
[EventCountry "POL"]
[SourceTitle "playchess.com"]
[Source "ChessBase"]
[SourceQuality "1"]
[TimeControl "40/5400+30:1800+30"]

1. d4 {[%emt 0:00:03]} Nf6 {[%emt 0:00:08]} 2. c4 {[%emt 0:00:05]} c5 {[%emt 0:00:05]} 3. d5 {[%emt 0:00:21]} b5 {[%emt 0:00:08]} 4. cxb5 {[%emt 0:00:30]} a6 {[%emt 0:00:06]} 5. bxa6 {[%emt 0:00:12]} Bxa6 {[%emt 0:00:08]} 6. Nc3 {[%emt 0:00:35]} d6 {[%emt 0:00:11]} 7. e4 {[%emt 0:01:04]} Bxf1 {[%emt 0:00:08]} 8. Kxf1 {[%emt 0:07:46]} g6 {[%emt 0:00:49]} 9. g3 {[%emt 0:01:43]} Bg7 {[%emt 0:00:06]} 10. Kg2 {[%emt 0:00:27]} O-O {[%emt 0:00:10]} 11. Nge2 {[%emt 0:00:26]} Nbd7 {[%emt 0:00:30]} 12. Rb1 {[%emt 0:04:45]} Qa5 {[%emt 0:03:00]} 13. b3 {[%emt 0:10:17]} Rfb8 {[%emt 0:01:12]} 14. Bd2 {[%emt 0:07:28]} Qa6 {[%emt 0:03:36]} 15. a4 {[%emt 0:15:24]} Qd3 {[%emt 0:13:18]} 16. Bf4 {[%emt 0:21:07]} Qxd1 {[%emt 0:01:57]} 17. Rhxd1 {[%emt 0:01:03]} Rb4 {[%emt 0:00:22]} 18. f3 {[%emt 0:02:42]} c4 {[%emt 0:07:08]} 19. bxc4 {[%emt 0:05:34]} Rxc4 {[%emt 0:00:38]} 20. Rb7 {[%emt 0:04:10]} Kf8 {[%emt 0:05:11]} 21. Rdb1 {[%emt 0:04:00]} Rcc8 {[%emt 0:01:49]} 22. Be3 {[%emt 0:08:48]} Nc5 {[%emt 0:04:04]} 23. Bxc5 {[%emt 0:00:15]} Rxc5 {[%emt 0:00:04]} 24. Rb8+ {[%emt 0:00:16]} Rc8 {[%emt 0:00:06]} 25. Rxa8 {[%emt 0:01:04]} Rxa8 {[%emt 0:00:04]} 26. Rb4 {[%emt 0:02:16]} Nd7 {[%emt 0:00:52]} 27. Nd4 {[%emt 0:00:51]} Nc5 {[%emt 0:04:54]} 28. Ndb5 {[%emt 0:00:36]} e6 {[%emt 0:05:24]} 29. dxe6 {[%emt 0:00:32]} fxe6 {[%emt 0:00:04]} 30. Rc4 {[%emt 0:00:33]} Ke7 {[%emt 0:01:13]} 31. Kf2 {[%emt 0:00:33]} h5 {[%emt 0:03:44]} 32. Ke3 {[%emt 0:00:32]} h4 {[%emt 0:00:10]} 33. f4 {[%emt 0:00:30]} g5 {[%emt 0:01:32]} 34. e5 {[%emt 0:00:24]} hxg3 {[%emt 0:13:31]} 35. hxg3 {[%emt 0:00:05]} gxf4+ {[%emt 0:03:30]} 36. gxf4 {[%emt 0:00:05]} Kd7 {[%emt 0:00:40]} 37. Nxd6 {[%emt 0:00:47]} Na6 {[%emt 0:01:50]} 38. Ncb5 {[%emt 0:00:51]} Bf8 {[%emt 0:00:37]} 39. Kd4 {[%emt 0:00:44]} Bxd6 {[%emt 0:03:55]} 40. Nxd6 {[%emt 0:00:00]} Nc7 {[%emt 0:00:00]} 41. Nb7 {[%emt 0:20:11]} Rf8 {[%emt 0:03:27]} 42. Ke4 {[%emt 0:01:46]} Ra8 {[%emt 0:02:49]} 43. Nc5+ {[%emt 0:02:46]} Ke7 {[%emt 0:00:53]} 44. Rd4 {[%emt 0:02:54]} Ke8 {[%emt 0:02:03]} 45. Rd6 {[%emt 0:01:20]} Ra5 {[%emt 0:03:26]} 46. Rc6 {[%emt 0:01:37]} Ra7 {[%emt 0:00:33]} 47. a5 {[%emt 0:01:43]} Rxa5 {[%emt 0:03:29]} 48. Rxc7 {[%emt 0:00:15]} Rb5 {[%emt 0:00:07]} 49. Rc6 {[%emt 0:01:17]} 1-0

[Event "Najdorf Memorial-A 2022"]
[Site "Warsaw"]
[Date "2022.07.09"]
[Round "1.6"]
[White "Raczek, Krzysztof"]
[Black "Hertlein, Irena"]
[Result "1-0"]
[ECO "A06"]
[WhiteElo "2114"]
[BlackElo "1850"]
[Annotator "RC"]
[PlyCount "105"]
[EventDate "2022.07.09"]
[EventType "swiss"]
[EventCountry "POL"]
[SourceTitle "playchess.com"]
[Source "ChessBase"]
[SourceQuality "1"]
[TimeControl "40/5400+30:1800+30"]

1. Nf3 {[%emt 0:00:11]} d5 {[%emt 0:00:07]} 2. b3 {[%emt 0:00:06]} e6 {[%emt 0:00:27]} 3. Bb2 {[%emt 0:00:05]} c5 {[%emt 0:00:11]} 4. e3 {[%emt 0:00:05]} Nf6 {[%emt 0:00:28]} 5. Be2 {[%emt 0:03:39]} Nc6 {[%emt 0:02:08]} 6. O-O {[%emt 0:00:10]} Be7 {[%emt 0:03:55]} 7. c4 {[%emt 0:01:07]} d4 {[%emt 0:01:23]} 8. exd4 {[%emt 0:00:18]} cxd4 {[%emt 0:00:07]} 9. Re1 {[%emt 0:00:04]} O-O {[%emt 0:01:42]} 10. Bf1 {[%emt 0:03:54]} Re8 {[%emt 0:02:38]} 11. d3 {[%emt 0:04:34]} Bc5 {[%emt 0:10:41]} 12. Nbd2 {[%emt 0:01:16]} e5 {[%emt 0:00:23]} 13. g3 {[%emt 0:04:27]} h6 {[%emt 0:06:32]} 14. Nh4 {[%emt 0:00:36]} Nh7 {[%emt 0:07:02]} 15. Bg2 {[%emt 0:01:55]} Ng5 {[%emt 0:12:29]} 16. Ne4 {[%emt 0:06:55]} Bf8 {[%emt 0:09:21]} 17. Qh5 {[%emt 0:08:33]} Bd7 {[%emt 0:08:20]} 18. Nxg5 {[%emt 0:00:59]} Qxg5 {[%emt 0:00:37]} 19. Qe2 {[%emt 0:01:29]} Rad8 {[%emt 0:14:17]} 20. a3 {[%emt 0:03:22]} a5 {[%emt 0:00:41]} 21. Reb1 {[%emt 0:05:50]} Bd6 {[%emt 0:10:29]} 22. Bc1 {[%emt 0:06:54]} Qe7 {[%emt 0:00:26]} 23. Be4 {[%emt 0:00:31]} Bh3 {[%emt 0:05:30]} 24. Qh5 {[%emt 0:06:50]} Qe6 {[%emt 0:01:19]} 25. Nf5 {[%emt 0:02:14]} Bxf5 {[%emt 0:00:07]} 26. Bxf5 {[%emt 0:00:22]} g6 {[%emt 0:01:34]} 27. Bxe6 {[%emt 0:00:29]} gxh5 {[%emt 0:00:01]} 28. Bd5 {[%emt 0:00:02]} Kg7 {[%emt 0:00:12]} 29. Be4 {[%emt 0:00:49]} Rf8 {[%emt 0:00:30]} 30. Bd2 {[%emt 0:03:54]} f5 {[%emt 0:01:19]} 31. Bf3 {[%emt 0:00:56]} Kg6 {[%emt 0:00:29]} 32. b4 {[%emt 0:00:14]} axb4 {[%emt 0:00:31]} 33. axb4 {[%emt 0:00:01]} Ra8 {[%emt 0:00:26]} 34. b5 {[%emt 0:00:59]} Rxa1 {[%emt 0:00:06]} 35. Rxa1 {[%emt 0:00:00]} Nd8 {[%emt 0:00:55]} 36. Bd5 {[%emt 0:00:50]} b6 {[%emt 0:00:34]} 37. f4 {[%emt 0:00:53]} Nf7 {[%emt 0:00:31]} 38. Kf2 {[%emt 0:02:21]} h4 {[%emt 0:00:18]} 39. Kf3 {[%emt 0:02:41]} hxg3 {[%emt 0:00:07]} 40. hxg3 {[%emt 0:00:00]} h5 {[%emt 0:00:00]} 41. Ra6 {[%emt 0:03:42]} Rb8 {[%emt 0:08:42]} 42. Bxf7+ {[%emt 0:00:35]} Kxf7 {[%emt 0:00:07]} 43. fxe5 {[%emt 0:00:01]} Bxe5 {[%emt 0:01:05]} 44. Bf4 {[%emt 0:00:01]} Bxf4 {[%emt 0:03:45]} 45. Kxf4 {[%emt 0:00:09]} Ke7 {[%emt 0:00:10]} 46. Ke5 {[%emt 0:00:12]} Rb7 {[%emt 0:03:31]} 47. Ra8 {[%emt 0:00:14]} Kf7 {[%emt 0:01:23]} 48. Kxd4 {[%emt 0:02:35]} Kf6 {[%emt 0:00:18]} 49. c5 {[%emt 0:02:05]} Rd7+ {[%emt 0:00:47]} 50. Kc4 {[%emt 0:00:19]} bxc5 {[%emt 0:00:06]} 51. b6 {[%emt 0:00:00]} Rd4+ {[%emt 0:03:31]} 52. Kxc5 {[%emt 0:00:02]} Rxd3 {[%emt 0:00:05]} 53. b7 {[%emt 0:00:06]} 1-0

[Event "Najdorf Memorial-A 2022"]
[Site "Warsaw"]
[Date "2022.07.09"]
[Round "1.6"]
[White "Polak, Michal"]
[Black "Sriram, Jha"]
[Result "1-0"]
[ECO "B38"]
[WhiteElo "1944"]
[BlackElo "2361"]
[Annotator "RC"]
[PlyCount "111"]
[EventDate "2022.07.09"]
[EventType "swiss"]
[EventCountry "POL"]
[SourceTitle "playchess.com"]
[Source "ChessBase"]
[SourceQuality "1"]
[TimeControl "40/5400+30:1800+30"]

1. e4 {[%emt 0:00:08]} c5 {[%emt 0:00:20]} 2. Nf3 {[%emt 0:00:14]} Nc6 {[%emt 0:00:10]} 3. d4 {[%emt 0:00:07]} cxd4 {[%emt 0:00:04]} 4. Nxd4 {[%emt 0:00:06]} g6 {[%emt 0:01:00]} 5. c4 {[%emt 0:00:10]} Bg7 {[%emt 0:00:06]} 6. Be3 {[%emt 0:00:12]} Qb6 {[%emt 0:00:29]} 7. Nb3 {[%emt 0:01:16]} Qd8 {[%emt 0:00:12]} 8. Nd4 {[%emt 0:01:32]} Nf6 {[%emt 0:00:09]} 9. Nc3 {[%emt 0:00:12]} d6 {[%emt 0:00:48]} 10. Be2 {[%emt 0:00:22]} O-O {[%emt 0:00:08]} 11. O-O {[%emt 0:00:13]} Bd7 {[%emt 0:00:09]} 12. Qd2 {[%emt 0:00:53]} Nxd4 {[%emt 0:00:11]} 13. Bxd4 {[%emt 0:00:06]} Bc6 {[%emt 0:00:03]} 14. f3 {[%emt 0:00:11]} a5 {[%emt 0:00:14]} 15. b3 {[%emt 0:00:35]} Nd7 {[%emt 0:00:07]} 16. Bf2 {[%emt 0:03:25]} Nc5 {[%emt 0:00:39]} 17. Rab1 {[%emt 0:00:18]} e6 {[%emt 0:08:34]} 18. Rfd1 {[%emt 0:01:34]} Be5 {[%emt 0:00:53]} 19. Nb5 {[%emt 0:02:02]} Bxb5 {[%emt 0:11:58]} 20. cxb5 {[%emt 0:02:31]} Qe7 {[%emt 0:07:01]} 21. Qe3 {[%emt 0:13:10]} Rac8 {[%emt 0:04:25]} 22. Rbc1 {[%emt 0:11:48]} b6 {[%emt 0:00:40]} 23. g3 {[%emt 0:04:47]} Bg7 {[%emt 0:04:31]} 24. Rd2 {[%emt 0:08:29]} f5 {[%emt 0:08:01]} 25. exf5 {[%emt 0:03:21]} Rxf5 {[%emt 0:19:11]} 26. f4 {[%emt 0:00:47]} g5 {[%emt 0:02:12]} 27. Bg4 {[%emt 0:11:32]} gxf4 {[%emt 0:02:43]} 28. gxf4 {[%emt 0:00:20]} Rff8 {[%emt 0:07:06]} 29. Rxc5 {[%emt 0:01:47]} Rxc5 {[%emt 0:01:30]} 30. Qxe6+ {[%emt 0:00:35]} Qxe6 {[%emt 0:01:27]} 31. Bxe6+ {[%emt 0:00:06]} Kh8 {[%emt 0:00:01]} 32. Bxc5 {[%emt 0:00:14]} dxc5 {[%emt 0:00:04]} 33. f5 {[%emt 0:01:04]} Bd4+ {[%emt 0:00:13]} 34. Kg2 {[%emt 0:01:45]} Kg7 {[%emt 0:00:06]} 35. Kf3 {[%emt 0:00:13]} Kf6 {[%emt 0:00:20]} 36. Ke4 {[%emt 0:02:10]} Rd8 {[%emt 0:03:19]} 37. Rd3 {[%emt 0:00:50]} Rd6 {[%emt 0:01:06]} 38. Rh3 {[%emt 0:06:16]} Kg7 {[%emt 0:00:09]} 39. Rg3+ {[%emt 0:00:07]} Kf6 {[%emt 0:00:03]} 40. Rg8 {[%emt 0:00:00]} Bb2 {[%emt 0:00:00]} 41. Bd5 {[%emt 0:05:15]} Ke7 {[%emt 0:02:15]} 42. Rb8 {[%emt 0:03:34]} Rh6 {[%emt 0:00:19]} 43. Rb7+ {[%emt 0:00:38]} Kd8 {[%emt 0:00:08]} 44. Bg8 {[%emt 0:02:51]} Rxh2 {[%emt 0:03:24]} 45. Rxb6 {[%emt 0:18:23]} h5 {[%emt 0:01:03]} 46. Rh6 {[%emt 0:03:15]} Re2+ {[%emt 0:21:13]} 47. Kf3 {[%emt 0:01:40]} Re3+ {[%emt 0:00:19]} 48. Kxe3 {[%emt 0:04:15]} Bc1+ 49. Ke4 {[%emt 0:00:44]} Bxh6 {[%emt 0:00:05]} 50. Kd5 {[%emt 0:00:47]} Be3 {[%emt 0:00:46]} 51. Kc6 Bd4 {[%emt 0:03:11]} 52. a4 {[%emt 0:03:49]} h4 53. Bd5 h3 {[%emt 0:05:10]} 54. b6 {[%emt 0:00:34]} Kc8 {[%emt 0:03:22]} 55. b7+ {[%emt 0:00:21]} Kb8 56. Kd7 1-0

[Event "Najdorf Memorial-A 2022"]
[Site "Warsaw"]
[Date "2022.07.09"]
[Round "1.7"]
[White "Sacharewicz, Krzysztof"]
[Black "Szewczyk, Mariusz"]
[Result "1/2-1/2"]
[ECO "D43"]
[WhiteElo "1832"]
[BlackElo "2103"]
[Annotator "NA RC"]
[PlyCount "108"]
[EventDate "2022.07.09"]
[EventType "swiss"]
[EventCountry "POL"]
[SourceTitle "playchess.com"]
[Source "ChessBase"]
[SourceQuality "1"]
[TimeControl "40/5400+30:1800+30"]

1. d4 {[%emt 0:00:02]} d5 {[%emt 0:00:05]} 2. Nf3 {[%emt 0:00:12]} Nf6 {[%emt 0:00:08]} 3. c4 {[%emt 0:00:49]} c6 {[%emt 0:00:06]} 4. Nc3 {[%emt 0:00:32]} e6 {[%emt 0:00:09]} 5. Bg5 {[%emt 0:01:55]} Be7 {[%emt 0:00:24]} 6. e3 {[%emt 0:00:18]} O-O {[%emt 0:00:17]} 7. Bd3 {[%emt 0:00:52]} Nbd7 {[%emt 0:01:22]} 8. O-O {[%emt 0:00:43]} dxc4 {[%emt 0:01:27]} 9. Bxc4 {[%emt 0:00:16]} b5 {[%emt 0:00:19]} 10. Bd3 {[%emt 0:00:48]} a6 {[%emt 0:00:55]} 11. Rc1 {[%emt 0:01:08]} c5 {[%emt 0:01:07]} 12. Bb1 {[%emt 0:08:55]} c4 {[%emt 0:03:47]} 13. Ne4 {[%emt 0:07:06]} Bb7 {[%emt 0:01:27]} 14. Nxf6+ {[%emt 0:00:48]} Bxf6 {[%emt 0:05:22]} 15. Bf4 {[%emt 0:02:38]} Qe7 {[%emt 0:03:24]} 16. Nd2 {[%emt 0:10:46]} e5 {[%emt 0:04:32]} 17. dxe5 {[%emt 0:02:31]} Nxe5 {[%emt 0:04:58]} 18. Ne4 {[%emt 0:04:41]} Bxe4 {[%emt 0:03:39]} 19. Bxe4 {[%emt 0:00:02]} Rad8 {[%emt 0:00:13]} 20. Qe2 {[%emt 0:05:18]} Nd7 {[%emt 0:08:00]} 21. Bb1 {[%emt 0:05:42]} Nc5 {[%emt 0:00:58]} 22. Rcd1 {[%emt 0:02:47]} Na4 {[%emt 0:02:39]} 23. Qc2 {[%emt 0:03:30]} g6 {[%emt 0:00:17]} 24. Rxd8 {[%emt 0:06:42]} Rxd8 {[%emt 0:00:21]} 25. b3 {[%emt 0:00:24]} cxb3 {[%emt 0:07:28]} 26. axb3 {[%emt 0:03:08]} Nc3 {[%emt 0:00:08]} 27. Bg3 {[%emt 0:01:56]} b4 {[%emt 0:00:45]} 28. e4 {[%emt 0:01:55]} Rd4 {[%emt 0:08:59]} 29. f3 {[%emt 0:07:39]} Qd8 {[%emt 0:02:47]} 30. Be1 {[%emt 0:08:00]} Rd7 {[%emt 0:17:34]} 31. f4 {[%emt 0:03:05]} Bd4+ {[%emt 0:03:16]} 32. Kh1 {[%emt 0:00:01]} Bg7 {[%emt 0:01:29]} 33. Kg1 {[%emt 0:02:29]} Qb6+ {[%emt 0:00:31]} 34. Bf2 {[%emt 0:02:17]} Bd4 {[%emt 0:00:31]} 35. h3 {[%emt 0:02:18]} Bxf2+ {[%emt 0:01:54]} 36. Qxf2 {[%emt 0:00:01]} Qxf2+ {[%emt 0:00:35]} 37. Kxf2 {[%emt 0:00:01]} Rd2+ {[%emt 0:00:11]} 38. Kf3 {[%emt 0:01:34]} a5 {[%emt 0:01:15]} 39. f5 {[%emt 0:00:02]} f6 {[%emt 0:01:27]} 40. fxg6 {[%emt 0:00:00]} hxg6 {[%emt 0:00:00]} 41. g4 {[%emt 0:03:17]} Kg7 {[%emt 0:03:53]} 42. Ke3 {[%emt 0:01:49]} Rb2 {[%emt 0:03:30]} 43. Bd3 {[%emt 0:00:02]} Rxb3 {[%emt 0:00:20]} 44. g5 {[%emt 0:00:21]} fxg5 {[%emt 0:00:33]} 45. e5 {[%emt 0:00:02]} Nd5+ {[%emt 0:00:32]} 46. Kd4 {[%emt 0:00:24]} Nf4 {[%emt 0:00:15]} 47. Bc4 {[%emt 0:00:36]} Rxh3 {[%emt 0:00:10]} 48. Rg1 {[%emt 0:01:25]} b3 {[%emt 0:02:55]} 49. Kc5 {[%emt 0:01:21]} Re3 {[%emt 0:01:28]} 50. Kd6 {[%emt 0:01:01]} a4 {[%emt 0:00:59]} 51. e6 {[%emt 0:00:38]} Nxe6 {[%emt 0:00:26]} 52. Bxe6 {[%emt 0:00:03]} Rxe6+ {[%emt 0:00:20]} 53. Kxe6 {[%emt 0:00:02]} b2 {[%emt 0:00:13]} 54. Kd5 {[%emt 0:00:17]} a3 {[%emt 0:00:07]} 1/2-1/2

[Event "Najdorf Memorial-A 2022"]
[Site "Warsaw"]
[Date "2022.07.09"]
[Round "1.8"]
[White "Vanduyfhuys, Daria"]
[Black "Pesko, Tomasz"]
[Result "1/2-1/2"]
[ECO "E98"]
[WhiteElo "2094"]
[BlackElo "1830"]
[Annotator "RC"]
[PlyCount "235"]
[EventDate "2022.07.09"]
[EventType "swiss"]
[EventCountry "POL"]
[SourceTitle "playchess.com"]
[Source "ChessBase"]
[SourceQuality "1"]
[TimeControl "40/5400+30:1800+30"]

1. d4 {[%emt 0:00:03]} Nf6 {[%emt 0:00:04]} 2. c4 {[%emt 0:00:07]} g6 {[%emt 0:00:08]} 3. Nc3 {[%emt 0:00:10]} Bg7 {[%emt 0:00:07]} 4. e4 {[%emt 0:00:10]} d6 {[%emt 0:00:09]} 5. Be2 {[%emt 0:00:28]} O-O {[%emt 0:00:09]} 6. Nf3 {[%emt 0:01:19]} e5 {[%emt 0:00:13]} 7. O-O {[%emt 0:01:24]} Nc6 {[%emt 0:00:13]} 8. d5 {[%emt 0:00:07]} Ne7 {[%emt 0:00:04]} 9. Ne1 {[%emt 0:01:50]} Ne8 {[%emt 0:00:27]} 10. Nd3 {[%emt 0:00:49]} f5 {[%emt 0:00:15]} 11. f3 {[%emt 0:00:07]} f4 {[%emt 0:01:14]} 12. c5 {[%emt 0:11:55]} g5 {[%emt 0:01:55]} 13. a4 {[%emt 0:03:08]} Ng6 {[%emt 0:00:29]} 14. a5 {[%emt 0:02:14]} Rf7 {[%emt 0:01:31]} 15. c6 {[%emt 0:07:57]} bxc6 {[%emt 0:20:22]} 16. dxc6 {[%emt 0:00:08]} Be6 {[%emt 0:01:57]} 17. Nb4 {[%emt 0:08:47]} h5 {[%emt 0:02:39]} 18. Ncd5 {[%emt 0:05:29]} Ne7 {[%emt 0:08:16]} 19. h3 {[%emt 0:06:14]} Nf6 {[%emt 0:21:27]} 20. Nxf6+ {[%emt 0:12:05]} Rxf6 {[%emt 0:05:50]} 21. Ra3 {[%emt 0:02:03]} Rg6 {[%emt 0:07:12]} 22. Bd2 {[%emt 0:01:35]} Qe8 {[%emt 0:01:48]} 23. Be1 {[%emt 0:01:54]} Qf7 {[%emt 0:01:11]} 24. Qc2 {[%emt 0:06:24]} d5 {[%emt 0:05:31]} 25. exd5 {[%emt 0:03:29]} Nxd5 {[%emt 0:00:05]} 26. Bd3 {[%emt 0:10:02]} Rh6 {[%emt 0:00:10]} 27. Nxd5 {[%emt 0:10:34]} Bxd5 {[%emt 0:00:13]} 28. Be4 {[%emt 0:00:06]} Rxc6 {[%emt 0:05:40]} 29. Rc3 {[%emt 0:00:06]} Rxc3 {[%emt 0:01:09]} 30. Bxc3 {[%emt 0:00:09]} Bxe4 {[%emt 0:06:28]} 31. Qxe4 {[%emt 0:00:56]} Rd8 {[%emt 0:01:30]} 32. Re1 {[%emt 0:00:07]} Rd5 {[%emt 0:03:29]} 33. Qb4 {[%emt 0:00:14]} c5 {[%emt 0:01:10]} 34. Qb8+ {[%emt 0:00:25]} Kh7 {[%emt 0:01:31]} 35. Bxe5 {[%emt 0:03:41]} Rd7 {[%emt 0:01:06]} 36. Bxg7 {[%emt 0:00:10]} Qxg7 {[%emt 0:00:09]} 37. Qe5 {[%emt 0:00:05]} Qxe5 {[%emt 0:02:15]} 38. Rxe5 {[%emt 0:00:03]} Kg6 {[%emt 0:00:08]} 39. Rxc5 {[%emt 0:00:05]} Rd1+ {[%emt 0:00:04]} 40. Kh2 {[%emt 0:00:00]} h4 {[%emt 0:00:00]} 41. b4 {[%emt 0:07:09]} Rb1 {[%emt 0:02:48]} 42. b5 {[%emt 0:00:59]} Kf6 {[%emt 0:01:09]} 43. a6 {[%emt 0:03:09]} Kg6 {[%emt 0:00:28]} 44. Rc6+ {[%emt 0:00:39]} Kg7 {[%emt 0:06:06]} 45. Rc7+ {[%emt 0:00:09]} Kg6 {[%emt 0:00:14]} 46. Rb7 {[%emt 0:00:35]} Kh6 {[%emt 0:05:11]} 47. Rb8 {[%emt 0:06:33]} Ra1 {[%emt 0:02:41]} 48. Rb7 {[%emt 0:01:09]} Rb1 {[%emt 0:00:41]} 49. Rxa7 {[%emt 0:00:21]} Rxb5 {[%emt 0:00:03]} 50. Kg1 {[%emt 0:05:12]} Ra5 {[%emt 0:00:52]} 51. Ra8 {[%emt 0:00:40]} Kg7 {[%emt 0:00:13]} 52. Kf1 {[%emt 0:00:50]} Ra1+ {[%emt 0:00:27]} 53. Ke2 {[%emt 0:00:09]} Ra2+ {[%emt 0:00:02]} 54. Kd3 {[%emt 0:06:50]} Rxg2 {[%emt 0:00:03]} 55. Ke4 {[%emt 0:00:27]} Ra2 {[%emt 0:09:57]} 56. Kf5 {[%emt 0:00:17]} Ra5+ {[%emt 0:00:02]} 57. Kg4 {[%emt 0:00:05]} Ra3 {[%emt 0:01:45]} 58. a7 {[%emt 0:00:50]} Ra5 {[%emt 0:00:20]} 59. Re8 {[%emt 0:01:18]} Rxa7 {[%emt 0:00:09]} 60. Re5 {[%emt 0:01:12]} Ra1 {[%emt 0:05:40]} 61. Rxg5+ {[%emt 0:00:21]} Kh6 {[%emt 0:00:33]} 62. Rf5 {[%emt 0:00:29]} Rg1+ {[%emt 0:00:23]} 63. Kxh4 {[%emt 0:00:04]} Rg2 {[%emt 0:00:14]} 64. Rxf4 {[%emt 0:00:13]} Rg1 {[%emt 0:00:08]} 65. Rg4 {[%emt 0:00:15]} Rf1 {[%emt 0:00:03]} 66. Kg3 {[%emt 0:00:19]} Ra1 {[%emt 0:01:38]} 67. Re4 {[%emt 0:03:15]} Rh1 {[%emt 0:01:41]} 68. h4 {[%emt 0:01:12]} Kh5 {[%emt 0:00:52]} 69. Re5+ Kh6 {[%emt 0:00:58]} 70. Kg4 {[%emt 0:00:38]} Rg1+ {[%emt 0:00:03]} 71. Kf4 {[%emt 0:00:04]} Rh1 {[%emt 0:00:09]} 72. h5 {[%emt 0:00:27]} Rh4+ {[%emt 0:00:05]} 73. Ke3 {[%emt 0:00:24]} Rh3 {[%emt 0:00:13]} 74. Ke4 {[%emt 0:00:18]} Rh1 {[%emt 0:00:17]} 75. f4 {[%emt 0:00:26]} Rh4 {[%emt 0:01:29]} 76. Rd5 {[%emt 0:01:27]} Rh1 {[%emt 0:00:27]} 77. Kd4 {[%emt 0:02:23]} Rf1 {[%emt 0:02:03]} 78. Rf5 {[%emt 0:00:40]} Re1 {[%emt 0:00:07]} 79. Re5 {[%emt 0:00:10]} Ra1 {[%emt 0:00:22]} 80. Ke4 {[%emt 0:00:26]} Ra4+ {[%emt 0:00:05]} 81. Kf3 {[%emt 0:00:07]} Ra1 {[%emt 0:00:08]} 82. Rf5 {[%emt 0:01:22]} Rb1 {[%emt 0:00:22]} 83. Rd5 {[%emt 0:01:05]} Rf1+ {[%emt 0:00:44]} 84. Ke4 {[%emt 0:00:11]} Re1+ {[%emt 0:00:06]} 85. Kd4 {[%emt 0:00:21]} Re2 {[%emt 0:00:42]} 86. Re5 {[%emt 0:01:04]} Rd2+ {[%emt 0:00:45]} 87. Ke4 {[%emt 0:00:24]} Rd1 {[%emt 0:00:21]} 88. Rg5 {[%emt 0:00:31]} Ra1 {[%emt 0:00:42]} 89. Kf5 {[%emt 0:00:05]} Ra5+ {[%emt 0:00:23]} 90. Kg4 {[%emt 0:00:04]} Ra6 {[%emt 0:00:07]} 91. Re5 {[%emt 0:00:12]} Rb6 {[%emt 0:00:33]} 92. Re4 {[%emt 0:00:19]} Ra6 {[%emt 0:00:22]} 93. f5 {[%emt 0:00:20]} Ra1 {[%emt 0:00:03]} 94. Re6+ {[%emt 0:00:04]} Kg7 {[%emt 0:00:19]} 95. h6+ {[%emt 0:01:10]} Kf7 {[%emt 0:01:20]} 96. Re3 {[%emt 0:01:15]} Rg1+ {[%emt 0:00:16]} 97. Rg3 {[%emt 0:00:06]} Rh1 {[%emt 0:00:21]} 98. Kg5 {[%emt 0:00:04]} Rh2 {[%emt 0:00:10]} 99. Rg1 {[%emt 0:01:20]} Rh3 {[%emt 0:00:31]} 100. Ra1 {[%emt 0:00:47]} Rg3+ {[%emt 0:00:11]} 101. Kf4 {[%emt 0:00:05]} Rh3 {[%emt 0:02:56]} 102. Kg5 {[%emt 0:01:05]} Rg3+ {[%emt 0:00:34]} 103. Kh4 {[%emt 0:00:16]} Rg2 {[%emt 0:00:32]} 104. Ra3 {[%emt 0:00:17]} Rh2+ {[%emt 0:00:29]} 105. Rh3 {[%emt 0:00:06]} Rg2 {[%emt 0:00:31]} 106. h7 {[%emt 0:01:32]} Kg7 {[%emt 0:00:14]} 107. Rg3+ {[%emt 0:00:31]} Rxg3 {[%emt 0:00:02]} 108. Kxg3 {[%emt 0:00:03]} Kxh7 {[%emt 0:00:05]} 109. Kf4 {[%emt 0:00:06]} Kg7 {[%emt 0:00:03]} 110. Ke5 {[%emt 0:00:49]} Kf7 {[%emt 0:00:01]} 111. Ke4 {[%emt 0:00:08]} Kf6 {[%emt 0:00:02]} 112. Kf4 {[%emt 0:00:05]} Kf7 {[%emt 0:00:03]} 113. Kg5 {[%emt 0:00:09]} Kg7 {[%emt 0:00:03]} 114. f6+ {[%emt 0:01:55]} Kf7 {[%emt 0:00:01]} 115. Kf5 {[%emt 0:00:05]} Kf8 {[%emt 0:00:08]} 116. Ke6 {[%emt 0:00:14]} Ke8 {[%emt 0:00:01]} 117. f7+ {[%emt 0:00:08]} Kf8 {[%emt 0:00:02]} 118. Kf6 {[%emt 0:00:05]} 1/2-1/2

[Event "Najdorf Memorial-A 2022"]
[Site "Warsaw"]
[Date "2022.07.09"]
[Round "1.8"]
[White "Wadelek, Karol"]
[Black "Deszczynski, Adam"]
[Result "0-1"]
[ECO "E91"]
[WhiteElo "1944"]
[BlackElo "2321"]
[Annotator "RC"]
[PlyCount "87"]
[EventDate "2022.07.09"]
[EventType "swiss"]
[EventCountry "POL"]
[SourceTitle "playchess.com"]
[Source "ChessBase"]
[SourceQuality "1"]
[TimeControl "40/5400+30:1800+30"]

1. d4 {[%emt 0:00:02]} Nf6 {[%emt 0:00:44]} 2. Nf3 {[%emt 0:00:16]} g6 {[%emt 0:01:20]} 3. c4 {[%emt 0:00:34]} Bg7 {[%emt 0:00:33]} 4. Nc3 {[%emt 0:00:05]} O-O {[%emt 0:00:46]} 5. e4 {[%emt 0:00:05]} d6 {[%emt 0:01:02]} 6. Be2 {[%emt 0:01:51]} Na6 {[%emt 0:03:35]} 7. Bg5 {[%emt 0:02:17]} c6 {[%emt 0:05:34]} 8. O-O {[%emt 0:00:59]} h6 {[%emt 0:04:51]} 9. Bh4 {[%emt 0:12:07]} g5 {[%emt 0:03:05]} 10. Bg3 {[%emt 0:00:11]} Nh5 {[%emt 0:00:17]} 11. Qd2 {[%emt 0:04:41]} Nxg3 {[%emt 0:03:22]} 12. hxg3 {[%emt 0:00:09]} e5 {[%emt 0:21:53]} 13. dxe5 {[%emt 0:06:37]} dxe5 {[%emt 0:02:45]} 14. Qe3 {[%emt 0:02:25]} Qe7 {[%emt 0:02:09]} 15. Rad1 {[%emt 0:10:41]} Nc5 {[%emt 0:02:56]} 16. Nh2 {[%emt 0:03:30]} Ne6 {[%emt 0:06:22]} 17. Bg4 {[%emt 0:01:58]} Nd4 {[%emt 0:01:54]} 18. Bxc8 {[%emt 0:00:17]} Rfxc8 {[%emt 0:02:54]} 19. g4 {[%emt 0:02:11]} Qb4 {[%emt 0:04:04]} 20. Rd2 {[%emt 0:10:50]} Qxc4 {[%emt 0:01:35]} 21. Rfd1 {[%emt 0:00:46]} Rd8 {[%emt 0:04:29]} 22. Nf1 {[%emt 0:01:25]} Rd7 {[%emt 0:07:10]} 23. Ng3 {[%emt 0:05:00]} Rad8 {[%emt 0:00:57]} 24. Kh1 {[%emt 0:04:19]} a5 {[%emt 0:03:28]} 25. Nf5 {[%emt 0:08:28]} Nxf5 {[%emt 0:04:14]} 26. gxf5 {[%emt 0:00:23]} Rd4 {[%emt 0:00:22]} 27. f3 {[%emt 0:07:39]} a4 {[%emt 0:01:47]} 28. a3 {[%emt 0:04:32]} Qb3 {[%emt 0:01:09]} 29. Qe1 {[%emt 0:00:14]} Bf6 {[%emt 0:01:07]} 30. Rxd4 {[%emt 0:03:51]} exd4 {[%emt 0:01:40]} 31. Ne2 {[%emt 0:02:37]} d3 {[%emt 0:00:40]} 32. Nc1 {[%emt 0:02:03]} Qxb2 {[%emt 0:04:01]} 33. Rxd3 {[%emt 0:00:16]} Rxd3 {[%emt 0:01:19]} 34. Nxd3 {[%emt 0:00:01]} Qa1 {[%emt 0:00:18]} 35. Qxa1 {[%emt 0:02:51]} Bxa1 {[%emt 0:00:02]} 36. Kg1 {[%emt 0:00:19]} c5 {[%emt 0:01:25]} 37. Kf1 {[%emt 0:00:33]} c4 {[%emt 0:01:15]} 38. Ne1 {[%emt 0:00:23]} Bb2 {[%emt 0:00:47]} 39. Nc2 {[%emt 0:00:04]} h5 {[%emt 0:00:42]} 40. Ke2 {[%emt 0:00:00]} Kg7 {[%emt 0:00:00]} 41. Ne3 {[%emt 0:25:52]} b5 {[%emt 0:02:14]} 42. Nd5 {[%emt 0:01:09]} Bxa3 {[%emt 0:01:35]} 43. Nc3 {[%emt 0:01:02]} Bb2 {[%emt 0:00:19]} 44. Ke1 0-1